fUST/lending_fUST_20250217
["ID","MTS","AMOUNT","RATE_DAILY","PERIOD"]
[353359107,1739795370235,-500.0,0.00012351,2]
[353359108,1739795370258,-500.0,0.00012351,2]
[353359109,1739795370281,-500.0,0.00012351,2]
[353359110,1739795370305,-500.0,0.00012352,2]
[353359111,1739795370330,-1468.68604355,0.00012352,2]
[353359112,1739795370464,-777.96395645,0.00012352,2]
[353359113,1739795370487,-62.52350638,0.00012352,2]
[353359114,1739795370696,-4537.22971069,0.0001174,2]
[353359115,1739795370718,-512.81885195,0.00011859,2]
[353359116,1739795370740,-1796.21649362,0.00012352,2]
[353359117,1739795370761,-151.0,0.00012352,2]
[353359118,1739795370782,-224.273313,0.00012352,2]
[353359119,1739795370803,-801.490763,0.00012352,2]
[353359120,1739795370825,-137.45848879,0.00012352,2]
[353359181,1739795432545,-500.0,0.00011858,2]
[353359183,1739795432554,-500.0,0.00011858,2]
[353359185,1739795432566,-500.0,0.00011858,2]
[353359187,1739795432576,-500.0,0.00011858,2]
[353359189,1739795432586,-500.0,0.00011858,2]
[353359191,1739795432595,-500.0,0.00011858,2]
[353359192,1739795432604,-500.0,0.00011858,2]
[353359193,1739795432613,-500.0,0.00011858,2]
[353359194,1739795432623,-478.07,0.00011858,2]
[353359195,1739795432632,-6567.35714541,0.00011858,2]
[353359196,1739795432651,-266.92285459,0.00011858,2]
[353359197,1739795432660,-500.0,0.00011858,2]
[353359198,1739795432669,-500.0,0.00011858,2]
[353359199,1739795432679,-500.0,0.00011858,2]
[353359200,1739795432688,-611.25,0.00011858,2]
[353359201,1739795432697,-500.0,0.00011858,2]
[353359202,1739795432706,-500.0,0.00011858,2]
[353359203,1739795432716,-500.0,0.00011859,2]
[353359204,1739795432725,-500.0,0.00011859,2]
[353359205,1739795432734,-500.0,0.00011859,2]
[353359206,1739795432743,-500.6914804,0.00011859,2]
[353359207,1739795432752,-501.28788491,0.00011859,2]
[353359208,1739795432761,-527.89325019,0.00011859,2]
[353359209,1739795432770,-500.0,0.00011859,2]
[353359210,1739795432779,-500.0,0.00011859,2]
[353359211,1739795432788,-500.0,0.00011859,2]
[353359212,1739795432797,-500.90103874,0.00011859,2]
[353359213,1739795432806,-502.95349315,0.00011859,2]
[353359214,1739795432816,-687.24,0.00011859,2]
[353359215,1739795432825,-501.15478708,0.00011859,2]
[353359225,1739795432940,-500.0,0.00011859,2]
[353359227,1739795432949,-500.0,0.00011859,2]
[353359229,1739795432958,-501.01526434,0.00011859,2]
[353359231,1739795432969,-572.83499134,0.00011859,2]
[353359233,1739795432978,-500.0,0.00011859,2]
[353359235,1739795432987,-502.18158285,0.00011859,2]
[353359237,1739795432997,-500.0,0.0001194,2]
[353359239,1739795433006,-500.0,0.0001194,2]
[353359241,1739795433015,-500.0,0.0001194,2]
[353359243,1739795433024,-500.0,0.0001194,2]
[353359245,1739795433033,-500.0,0.0001194,2]
[353359247,1739795433042,-500.0,0.0001194,2]
[353359249,1739795433051,-500.0,0.0001194,2]
[353359251,1739795433061,-500.0,0.0001194,2]
[353359253,1739795433070,-6834.28,0.0001194,2]
[353359255,1739795433080,-500.0,0.0001194,2]
[353359257,1739795433089,-500.0,0.0001194,2]
[353359259,1739795433098,-500.0,0.0001194,2]
[353359261,1739795433107,-500.0,0.0001194,2]
[353359263,1739795433117,-500.0,0.0001194,2]
[353359265,1739795433126,-500.0,0.00011941,2]
[353359267,1739795433135,-500.0,0.00011941,2]
[353359269,1739795433144,-500.0,0.00011941,2]
[353359271,1739795433153,-500.0,0.00011941,2]
[353359273,1739795433163,-500.0,0.00011941,2]
[353359275,1739795433172,-687.24,0.00011941,2]
[353359277,1739795433181,-486.95820269,0.00011941,2]
[353359279,1739795433190,-507.00335699,0.00011941,2]
[353359280,1739795433200,-500.0,0.00011941,2]
[353359282,1739795433209,-500.0,0.00012023,2]
[353359284,1739795433219,-500.0,0.00012023,2]
[353359285,1739795433228,-500.0,0.00012023,2]
[353359287,1739795433237,-500.0,0.00012023,2]
[353359288,1739795433247,-500.0,0.00012023,2]
[353359289,1739795433256,-500.0,0.00012023,2]
[353359290,1739795433265,-500.0,0.00012023,2]
[353359291,1739795433274,-500.0,0.00012023,2]
[353359292,1739795433284,-6834.28,0.00012023,2]
[353359293,1739795433294,-500.0,0.00012023,2]
[353359294,1739795433304,-500.0,0.00012023,2]
[353359295,1739795433314,-500.0,0.00012023,2]
[353359296,1739795433323,-500.0,0.00012023,2]
[353359297,1739795433333,-500.0,0.00012023,2]
[353359298,1739795433342,-534.16,0.00012024,2]
[353359299,1739795433353,-502.27547789,0.00012024,2]
[353359301,1739795433362,-500.0,0.00012024,2]
[353359302,1739795433371,-500.0,0.00012024,2]
[353359303,1739795433381,-501.64097503,0.00012024,2]
[353359304,1739795433391,-687.24,0.00012024,2]
[353359305,1739795433400,-534.62,0.00012024,2]
[353359306,1739795433409,-500.0,0.00012105,2]
[353359307,1739795433418,-500.0,0.00012105,2]
[353359308,1739795433428,-500.0,0.00012105,2]
[353359309,1739795433437,-500.0,0.00012105,2]
[353359310,1739795433447,-239.57,0.00012105,2]
[353359311,1739795433456,-500.0,0.00012105,2]
[353359312,1739795433466,-500.0,0.00012105,2]
[353359313,1739795433475,-6834.28,0.00012105,2]
[353359314,1739795433485,-500.0,0.00012105,2]
[353359315,1739795433495,-500.0,0.00012105,2]
[353359316,1739795433504,-500.0,0.00012105,2]
[353359317,1739795433513,-500.0,0.00012105,2]
[353359318,1739795433522,-500.0,0.00012105,2]
[353359319,1739795433532,-500.0,0.00012106,2]
[353359320,1739795433541,-687.24,0.00012106,2]
[353359321,1739795433550,-500.0,0.00012187,2]
[353359322,1739795433561,-500.0,0.00012187,2]
[353359323,1739795433570,-500.0,0.00012187,2]
[353359324,1739795433579,-500.0,0.00012187,2]
[353359325,1739795433588,-500.0,0.00012187,2]
[353359326,1739795433597,-500.0,0.00012187,2]
[353359327,1739795433607,-6834.28,0.00012187,2]
[353359328,1739795433616,-500.0,0.00012187,2]
[353359329,1739795433626,-500.0,0.00012187,2]
[353359330,1739795433635,-500.0,0.00012187,2]
[353359331,1739795433644,-500.0,0.00012187,2]
[353359332,1739795433653,-500.0,0.00012187,2]
[353359333,1739795433663,-500.0,0.00012188,2]
[353359334,1739795433672,-687.24,0.00012188,2]
[353359335,1739795433684,-500.0,0.00012269,2]
[353359336,1739795433694,-500.0,0.00012269,2]
[353359337,1739795433703,-560.91,0.00012269,2]
[353359338,1739795433713,-500.0,0.00012269,2]
[353359339,1739795433722,-500.0,0.00012269,2]
[353359340,1739795433732,-500.0,0.00012269,2]
[353359341,1739795433741,-6834.28,0.00012269,2]
[353359342,1739795433750,-500.0,0.00012269,2]
[353359343,1739795433760,-500.0,0.00012269,2]
[353359344,1739795433770,-500.0,0.00012269,2]
[353359345,1739795433780,-500.0,0.00012269,2]
[353359346,1739795433789,-500.0,0.00012269,2]
[353359347,1739795433800,-500.0,0.0001227,2]
[353359348,1739795433810,-687.24,0.0001227,2]
[353359349,1739795433822,-500.0,0.00012351,2]
[353359350,1739795433832,-500.0,0.00012351,2]
[353359351,1739795433842,-500.0,0.00012351,2]
[353359352,1739795433852,-500.0,0.00012351,2]
[353359353,1739795433861,-500.0,0.00012351,2]
[353359354,1739795433871,-6834.28,0.00012351,2]
[353359355,1739795433881,-500.0,0.00012351,2]
[353359356,1739795433891,-500.0,0.00012351,2]
[353359357,1739795433901,-500.0,0.00012351,2]
[353359358,1739795433910,-500.0,0.00012351,2]
[353359359,1739795433922,-500.0,0.00012351,2]
[353359360,1739795433932,-664.03227421,0.00012352,2]
[353359361,1739795433942,-151.0,0.00012352,2]
[353359362,1739795433951,-626.93165047,0.00012352,2]
[353359363,1739795433962,-687.24,0.00012352,2]
[353359364,1739795433972,-457.78,0.00012356,2]
[353359365,1739795433982,-500.0,0.00012433,2]
[353359366,1739795433991,-500.0,0.00012433,2]
[353359367,1739795434000,-500.0,0.00012433,2]
[353359368,1739795434010,-827.47,0.00012433,2]
[353359369,1739795434020,-500.0,0.00012433,2]
[353359370,1739795434029,-500.0,0.00012433,2]
[353359371,1739795434038,-500.0,0.00012433,2]
[353359372,1739795434047,-500.0,0.00012433,2]
[353359373,1739795434056,-336.7,0.00012433,2]
[353359374,1739795434067,-500.0,0.00012433,2]
[353359375,1739795434077,-500.0,0.00012433,2]
[353359376,1739795434087,-6834.28,0.00012433,2]
[353359377,1739795434097,-500.0,0.00012433,2]
[353359378,1739795434108,-500.0,0.00012433,2]
[353359379,1739795434117,-500.0,0.00012433,2]
[353359380,1739795434127,-500.0,0.00012433,2]
[353359381,1739795434136,-1858.74,0.00012435,2]
[353359382,1739795434145,-687.24,0.00012435,2]
[353359383,1739795434155,-500.0,0.00012516,2]
[353359384,1739795434164,-487.63,0.00012516,2]
[353359385,1739795434175,-276.81,0.00012516,2]
[353359386,1739795434184,-827.47,0.00012516,2]
[353359387,1739795434193,-173.63456356,0.00012516,2]
[353359388,1739795434202,-500.0,0.00012516,2]
[353359389,1739795434212,-556.12,0.00012516,2]
[353359390,1739795434221,-151.0,0.00012516,2]
[353359391,1739795434230,-500.0,0.00012516,2]
[353359392,1739795434239,-500.0,0.00012516,2]
[353359393,1739795434249,-500.0,0.00012516,2]
[353359394,1739795434259,-6834.28,0.00012516,2]
[353359395,1739795434268,-500.0,0.00012516,2]
[353359396,1739795434277,-500.0,0.00012516,2]
[353359397,1739795434287,-500.0,0.00012516,2]
[353359398,1739795434296,-442.13,0.00012516,2]
[353359399,1739795434305,-1858.74,0.00012517,2]
[353359400,1739795434316,-687.24,0.00012517,2]
[353359401,1739795434325,-223.38,0.00012598,2]
[353359402,1739795434335,-827.47,0.00012598,2]
[353359403,1739795434345,-500.0,0.00012598,2]
[353359404,1739795434354,-500.0,0.00012598,2]
[353359405,1739795434365,-500.0,0.00012598,2]
[353359406,1739795434374,-500.0,0.00012598,2]
[353359407,1739795434384,-6834.28,0.00012598,2]
[353359408,1739795434393,-500.0,0.00012598,2]
[353359409,1739795434403,-500.0,0.00012598,2]
[353359410,1739795434412,-500.0,0.00012598,2]
[353359411,1739795434422,-1858.74,0.00012599,2]
[353359412,1739795434431,-687.24,0.00012599,2]
[353359413,1739795434440,-559.92915258,0.00012679,2]
[353359414,1739795434450,-827.47,0.0001268,2]
[353359415,1739795434459,-500.0,0.0001268,2]
[353359416,1739795434468,-500.0,0.0001268,2]
[353359417,1739795434477,-324.43765238,0.0001268,2]
[353359418,1739795434486,-500.0,0.0001268,2]
[353359419,1739795434495,-6834.28,0.0001268,2]
[353359420,1739795434505,-500.0,0.0001268,2]
[353359421,1739795434514,-500.0,0.0001268,2]
[353359422,1739795434523,-500.0,0.0001268,2]
[353359423,1739795434533,-1858.74,0.00012681,2]
[353359424,1739795434542,-687.24,0.00012681,2]
[353359425,1739795434551,-827.47,0.00012762,2]
[353359426,1739795434561,-500.0,0.00012762,2]
[353359427,1739795434570,-500.0,0.00012762,2]
[353359428,1739795434580,-500.0,0.00012762,2]
[353359429,1739795434589,-6834.28,0.00012762,2]
[353359430,1739795434598,-510.99,0.00012762,2]
[353359431,1739795434608,-500.0,0.00012762,2]
[353359432,1739795434618,-500.0,0.00012762,2]
[353359433,1739795434629,-1858.74,0.00012763,2]
[353359434,1739795434641,-687.24,0.00012763,2]
[353359435,1739795434652,-827.47,0.00012844,2]
[353359436,1739795434663,-563.92,0.00012844,2]
[353359437,1739795434673,-500.0,0.00012844,2]
[353359438,1739795434682,-500.0,0.00012844,2]
[353359439,1739795434692,-5453.88012242,0.00012844,2]
[353359463,1739795438599,-500.0,0.00011858,2]
[353359464,1739795438609,-500.0,0.00011858,2]
[353359465,1739795438620,-500.0,0.00011858,2]
[353359466,1739795438630,-380.88942374,0.00011859,2]
[353359467,1739795438639,-502.42176256,0.00011859,2]
[353359468,1739795438650,-500.0,0.00011859,2]
[353359469,1739795438659,-500.0,0.00011859,2]
[353359470,1739795438670,-500.0,0.0001194,2]
[353359471,1739795438680,-500.0,0.0001194,2]
[353359472,1739795438690,-500.0,0.0001194,2]
[353359473,1739795438700,-500.0,0.00011941,2]
[353359474,1739795438709,-183.08469318,0.00011941,2]
[353359475,1739795438718,-500.0,0.00012023,2]
[353359476,1739795438728,-458.44,0.00012023,2]
[353359477,1739795438738,-500.0,0.00012023,2]
[353359478,1739795438747,-500.0,0.00012024,2]
[353359479,1739795438756,-500.0,0.00012105,2]
[353359480,1739795438765,-500.0,0.00012105,2]
[353359481,1739795438774,-500.0,0.00012187,2]
[353359482,1739795438783,-500.0,0.00012187,2]
[353359483,1739795438792,-500.0,0.00012269,2]
[353359484,1739795438801,-500.0,0.00012351,2]
[353359485,1739795438823,-500.0,0.00012433,2]
[353359486,1739795438832,-500.0,0.00012516,2]
[353359487,1739795438842,-500.0,0.00012598,2]
[353359488,1739795438851,-432.15,0.0001268,2]
[353359489,1739795438861,-1380.39987758,0.00012844,2]
[353359490,1739795438871,-500.0,0.00012844,2]
[353359491,1739795438881,-500.0,0.00012844,2]
[353359492,1739795438891,-1858.74,0.00012846,2]
[353359493,1739795438900,-687.24,0.00012846,2]
[353359494,1739795438910,-500.0,0.00012896,2]
[353359495,1739795438920,-213.315852,0.00012897,2]
[353359496,1739795438932,-7438.69753278,0.00012897,2]
[353359497,1739795438942,-163.58177586,0.000129,2]
[353359498,1739795438952,-827.47,0.00012927,2]
[353359499,1739795438963,-500.0,0.00012927,2]
[353359500,1739795438973,-500.0,0.00012927,2]
[353359501,1739795438983,-6834.28,0.00012927,2]
[353359502,1739795438992,-500.0,0.00012927,2]
[353359503,1739795439003,-500.0,0.00012927,2]
[353359504,1739795439013,-151.0,0.00012928,2]
[353359505,1739795439023,-1425.774499,0.00012928,2]
[353359506,1739795439032,-1425.774499,0.00012928,2]
[353359507,1739795439042,-1858.74,0.00012928,2]
[353359508,1739795439052,-151.0,0.00012928,2]
[353359509,1739795439062,-687.24,0.00012928,2]
[353359510,1739795439071,-827.47,0.00013009,2]
[353359511,1739795439080,-500.0,0.00013009,2]
[353359512,1739795439090,-500.0,0.00013009,2]
[353359513,1739795439101,-6834.28,0.00013009,2]
[353359514,1739795439110,-542.01,0.00013009,2]
[353359515,1739795439120,-500.0,0.00013009,2]
[353359516,1739795439130,-1858.74,0.0001301,2]
[353359517,1739795439141,-687.24,0.0001301,2]
[353359518,1739795439151,-827.47,0.00013091,2]
[353359519,1739795439161,-500.0,0.00013091,2]
[353359520,1739795439171,-500.0,0.00013091,2]
[353359521,1739795439183,-6834.28,0.00013091,2]
[353359522,1739795439193,-500.0,0.00013091,2]
[353359523,1739795439204,-151.0,0.00013092,2]
[353359524,1739795439214,-1355.277113,0.00013092,2]
[353359525,1739795439224,-1858.74,0.00013092,2]
[353359526,1739795439233,-1355.277113,0.00013092,2]
[353359527,1739795439243,-151.0,0.00013092,2]
[353359528,1739795439252,-801.490763,0.00013092,2]
[353359529,1739795439262,-801.490763,0.00013092,2]
[353359530,1739795439271,-687.24,0.00013092,2]
[353359531,1739795439281,-827.47,0.00013173,2]
[353359532,1739795439291,-500.0,0.00013173,2]
[353359533,1739795439300,-500.0,0.00013173,2]
[353359534,1739795439310,-6834.28,0.00013173,2]
[353359535,1739795439320,-500.0,0.00013173,2]
[353359536,1739795439330,-1858.74,0.00013174,2]
[353359537,1739795439339,-687.24,0.00013174,2]
[353359538,1739795439348,-827.47,0.00013255,2]
[353359539,1739795439358,-500.0,0.00013255,2]
[353359540,1739795439367,-500.0,0.00013255,2]
[353359541,1739795439376,-6834.28,0.00013255,2]
[353359542,1739795439386,-500.0,0.00013255,2]
[353359543,1739795439395,-1858.74,0.00013256,2]
[353359544,1739795439405,-687.24,0.00013256,2]
[353359545,1739795439414,-827.47,0.00013338,2]
[353359546,1739795439424,-500.0,0.00013338,2]
[353359547,1739795439434,-548.97,0.00013338,2]
[353359548,1739795439443,-6834.28,0.00013338,2]
[353359549,1739795439452,-500.0,0.00013338,2]
[353359550,1739795439461,-1858.74,0.00013339,2]
[353359551,1739795439470,-687.24,0.00013339,2]
[353359552,1739795439480,-827.47,0.0001342,2]
[353359553,1739795439489,-500.0,0.0001342,2]
[353359554,1739795439498,-6834.28,0.0001342,2]
[353359555,1739795439508,-621.25,0.0001342,2]
[353359556,1739795439518,-1858.74,0.00013421,2]
[353359557,1739795439529,-277.000644,0.00013421,2]
[353359558,1739795439539,-687.24,0.00013421,2]
[353359559,1739795439549,-297.425,0.00013488,2]
[353359560,1739795439562,-827.47,0.00013502,2]
[353359561,1739795439571,-500.0,0.00013502,2]
[353359562,1739795439580,-6834.28,0.00013502,2]
[353359563,1739795439591,-1858.74,0.00013503,2]
[353359564,1739795439602,-687.24,0.00013503,2]
[353359565,1739795439614,-1425.774499,0.00013567,2]
[353359566,1739795439623,-1425.774499,0.00013567,2]
[353359567,1739795439633,-151.0,0.00013567,2]
[353359568,1739795439646,-1355.277113,0.00013567,2]
[353359569,1739795439656,-151.0,0.00013567,2]
[353359570,1739795439665,-1355.277113,0.00013567,2]
[353359571,1739795439675,-801.490763,0.00013567,2]
[353359572,1739795439684,-801.490763,0.00013567,2]
[353359573,1739795439695,-38638.37539949,0.00013567,2]
[353359574,1739795439705,-827.47,0.00013584,2]
[353359575,1739795439715,-500.0,0.00013584,2]
[353359576,1739795439725,-6834.28,0.00013584,2]
[353359577,1739795439734,-1858.74,0.00013585,2]
[353359578,1739795439743,-687.24,0.00013585,2]
[353359579,1739795439753,-827.47,0.00013666,2]
[353359580,1739795439763,-315.23,0.00013666,2]
[353359581,1739795439772,-6834.28,0.00013666,2]
[353359582,1739795439781,-88971.13310418,0.00013667,5]
[353359583,1739795439791,-1858.74,0.00013667,2]
[353359584,1739795439801,-687.24,0.00013667,2]
[353359585,1739795439810,-159.9481059,0.00013699,2]
[353359586,1739795439820,-169.022279,0.00013699,2]
[353359587,1739795439830,-500.0,0.00013699,2]
[353359588,1739795439839,-500.0,0.00013699,2]
[353359589,1739795439848,-500.0,0.00013699,2]
[353359590,1739795439857,-333.4875166,0.00013699,2]
[353359591,1739795439866,-500.0,0.00013699,2]
[353359592,1739795439876,-585.44004713,0.00013719,2]
[353359593,1739795439886,-827.61,0.00013749,2]
[353359594,1739795439895,-6834.3632652,0.00013749,2]
[353359596,1739795439905,-1858.9,0.0001375,2]
[353359597,1739795439914,-687.45,0.0001375,2]
[353359598,1739795439925,-585.44004713,0.00013819,2]
[353359599,1739795439937,-309.2674972,0.0001389,2]
[353359601,1739795439946,-433.0495555,0.0001389,2]
[353359603,1739795439956,-585.44004713,0.00013919,2]
[353359605,1739795439966,-3000.0,0.00014,2]
[353359607,1739795439977,-7016.94080811,0.00014,2]
[353359609,1739795439986,-164.69664899,0.00014019,2]
[353359611,1739795439996,-585.44004713,0.00014019,2]
[353359613,1739795440006,-585.44004713,0.00014119,2]
[353359615,1739795440016,-153.0,0.00014164,2]
[353359617,1739795440025,-153.0,0.00014164,2]
[353359619,1739795440036,-6806.6717442,0.000142,2]
[353359621,1739795440045,-585.44004713,0.00014219,2]
[353359623,1739795440055,-3000.0,0.000143,2]
[353359625,1739795440065,-1425.774499,0.000143,2]
[353359627,1739795440074,-1425.774499,0.000143,2]
[353359629,1739795440084,-151.0,0.000143,2]
[353359631,1739795440094,-1355.277113,0.000143,2]
[353359632,1739795440103,-1355.277113,0.000143,2]
[353359633,1739795440113,-585.44004713,0.00014319,2]
[353359634,1739795440122,-151.0,0.000144,2]
[353359635,1739795440131,-585.44004713,0.00014419,2]
[353359636,1739795440142,-151.0,0.00014489,2]
[353359637,1739795440151,-801.490763,0.00014489,2]
[353359638,1739795440161,-801.490763,0.00014489,2]
[353359639,1739795440170,-3000.0,0.000145,2]
[353359640,1739795440180,-585.44004713,0.00014519,2]
[353359641,1739795440191,-151.0,0.000146,2]
[353359642,1739795440200,-1537.3000944,0.00014601,2]
[353359643,1739795440210,-585.44004713,0.00014619,2]
[353359644,1739795440219,-153.0,0.00014712,2]
[353359645,1739795440230,-153.0,0.00014712,2]
[353359646,1739795440239,-153.0,0.00014712,2]
[353359647,1739795440249,-585.44004713,0.00014719,2]
[353359648,1739795440259,-259.39,0.00014756,2]
[353359649,1739795440270,-296.36033611,0.00014799,2]
[353359651,1739795440280,-202.33373883,0.00014799,2]
[353359653,1739795440292,-500.0,0.00014799,2]
[353359655,1739795440302,-497.16113053,0.00014799,2]
[353359657,1739795440312,-166.0,0.000148,2]
[353359658,1739795440321,-201.59276754,0.000148,2]
[353359659,1739795440330,-151.0,0.000148,2]
[353359661,1739795440340,-151.0,0.000148,2]
[353359662,1739795440349,-151.0,0.000148,2]
[353359663,1739795440362,-1425.774499,0.000148,2]
[353359664,1739795440371,-1425.774499,0.000148,2]
[353359665,1739795440381,-151.0,0.000148,2]
[353359667,1739795440390,-1311.44150985,0.000148,2]
[353359669,1739795440399,-1355.277113,0.000148,2]
[353359670,1739795440409,-258.668222,0.000148,2]
[353359671,1739795440419,-1355.277113,0.000148,2]
[353359672,1739795440428,-801.490763,0.000148,2]
[353359673,1739795440439,-801.490763,0.000148,2]
[353359674,1739795440449,-48343.5151261,0.000148,2]
[353359675,1739795440458,-1508.36448916,0.000148,2]
[353359676,1739795440468,-1508.36448916,0.000148,2]
[353359677,1739795440478,-1508.36448916,0.000148,2]
[353359678,1739795440487,-1508.36448916,0.000148,2]
[353359679,1739795440496,-1508.36448916,0.000148,2]
[353359681,1739795440505,-1508.36448916,0.000148,2]
[353359683,1739795440515,-1508.36448916,0.000148,2]
[353359684,1739795440524,-1508.36448916,0.000148,2]
[353359685,1739795440533,-1508.36448916,0.000148,2]
[353359686,1739795440543,-1508.36448916,0.000148,2]
[353359687,1739795440552,-1508.36448916,0.000148,2]
[353359688,1739795440562,-1508.36448916,0.000148,2]
[353359689,1739795440571,-1508.36448916,0.000148,2]
[353359690,1739795440581,-1508.36448916,0.000148,2]
[353359691,1739795440591,-1508.36448916,0.000148,2]
[353359692,1739795440601,-1508.36448916,0.000148,2]
[353359693,1739795440611,-1508.36448916,0.000148,2]
[353359694,1739795440621,-1508.36448916,0.000148,2]
[353359695,1739795440631,-1508.36448916,0.000148,2]
[353359696,1739795440640,-1508.36,0.000148,2]
[353359697,1739795440750,-415.87866598,0.000148,2]
[353359698,1739795440760,-415.87866598,0.000148,2]
[353359699,1739795440770,-415.87866598,0.000148,2]
[353359700,1739795440779,-415.87866598,0.000148,2]
[353359701,1739795440789,-415.87866598,0.000148,2]
[353359702,1739795440798,-415.87866598,0.000148,2]
[353359703,1739795440808,-415.87866598,0.000148,2]
[353359704,1739795440817,-415.87866598,0.000148,2]
[353359705,1739795440826,-415.87866598,0.000148,2]
[353359706,1739795440835,-415.87866598,0.000148,2]
[353359707,1739795440844,-415.87866598,0.000148,2]
[353359708,1739795440854,-415.87866598,0.000148,2]
[353359709,1739795440863,-415.87866598,0.000148,2]
[353359710,1739795440872,-415.87866598,0.000148,2]
[353359711,1739795440882,-415.87866598,0.000148,2]
[353359712,1739795440905,-415.87866598,0.000148,2]
[353359713,1739795440914,-415.87866598,0.000148,2]
[353359714,1739795440925,-415.87866598,0.000148,2]
[353359715,1739795440937,-415.87866598,0.000148,2]
[353359716,1739795440946,-415.87,0.000148,2]
[353359717,1739795440955,-585.44004713,0.00014819,2]
[353359718,1739795440966,-500.0,0.00014873,2]
[353359719,1739795440975,-500.0,0.00014873,2]
[353359720,1739795440984,-500.0,0.00014873,2]
[353359721,1739795440994,-500.0,0.00014873,2]
[353359722,1739795441004,-577.1988716,0.00014873,2]
[353359723,1739795441023,-541.038,0.00014879,2]
[353359724,1739795441034,-1971.0,0.00014879,2]
[353359725,1739795441044,-2292.0,0.00014879,2]
[353359726,1739795441054,-396.0,0.00014879,2]
[353359727,1739795441064,-2475.33273162,0.0001489,2]
[353359728,1739795441075,-3453.10822329,0.0001489,2]
[353359729,1739795441085,-151.0,0.000149,2]
[353359730,1739795441095,-151.0,0.000149,2]
[353359731,1739795441104,-151.0,0.000149,2]
[353359732,1739795441114,-151.0,0.000149,2]
[353359733,1739795441124,-151.0,0.000149,2]
[353359734,1739795441133,-1425.774499,0.000149,2]
[353359735,1739795441143,-1425.774499,0.000149,2]
[353359736,1739795441153,-1425.774499,0.000149,2]
[353359737,1739795441163,-1425.774499,0.000149,2]
[353359738,1739795441173,-151.0,0.000149,2]
[353359739,1739795441183,-246.56854,0.000149,2]
[353359740,1739795441192,-1355.277113,0.000149,2]
[353359741,1739795441202,-1355.277113,0.000149,2]
[353359742,1739795441211,-1355.277113,0.000149,2]
[353359743,1739795441221,-1355.277113,0.000149,2]
[353359744,1739795441230,-801.490763,0.000149,2]
[353359745,1739795441240,-801.490763,0.000149,2]
[353359746,1739795441250,-801.490763,0.000149,2]
[353359747,1739795441259,-801.490763,0.000149,2]
[353359748,1739795441270,-634657.449806,0.000149,2]
[353359749,1739795441279,-150.0,0.000149,2]
[353359750,1739795441290,-3519.51714136,0.000149,2]
[353359751,1739795441300,-3519.51714136,0.000149,2]
[353359752,1739795441310,-3519.51714136,0.000149,2]
[353359753,1739795441322,-3519.51714136,0.000149,2]
[353359754,1739795441332,-3519.51714136,0.000149,2]
[353359755,1739795441342,-3519.51714136,0.000149,2]
[353359756,1739795441351,-3519.51714136,0.000149,2]
[353359757,1739795441361,-3519.51714136,0.000149,2]
[353359758,1739795441370,-3519.51714136,0.000149,2]
[353359759,1739795441380,-3519.51714136,0.000149,2]
[353359760,1739795441389,-3519.51714136,0.000149,2]